[Event "Early-Titled-Tuesday-Blitz-April-23-2024"]
[Site "Chess.com"]
[Date "2024.04.23"]
[Round "3"]
[White "NovakCabarkapa"]
[Black "AnishOnYoutube"]
[Result "0-1"]
[WhiteElo "2778"]
[BlackElo "3076"]
[TimeControl "180+1"]
[EndTime "8:29:51 PDT"]
[Termination "AnishOnYoutube won on time"]

1. d4 {[%clk 0:02:59.9]} 1... Nf6 {[%clk 0:03:00.1]} 2. Nc3 {[%clk 0:02:59.3]}
2... d5 {[%clk 0:03:00.3]} 3. Bf4 {[%clk 0:02:58]} 3... Bf5 {[%clk 0:02:58.7]}
4. e3 {[%clk 0:02:57.5]} 4... e6 {[%clk 0:02:57.5]} 5. Nf3 {[%clk 0:02:57.9]}
5... Bb4 {[%clk 0:02:55.7]} 6. Bd3 {[%clk 0:02:56.3]} 6... Nbd7 {[%clk
0:02:50.3]} 7. O-O {[%clk 0:02:49]} 7... Bxc3 {[%clk 0:02:48.6]} 8. bxc3 {[%clk
0:02:49.9]} 8... O-O {[%clk 0:02:48.8]} 9. c4 {[%clk 0:02:48.4]} 9... dxc4
{[%clk 0:02:28.7]} 10. Bxc4 {[%clk 0:02:46.2]} 10... Qe7 {[%clk 0:02:28.6]} 11.
Bd3 {[%clk 0:02:37.6]} 11... c5 {[%clk 0:02:26.9]} 12. Bxf5 {[%clk 0:02:36.4]}
12... exf5 {[%clk 0:02:26.8]} 13. dxc5 {[%clk 0:02:16.7]} 13... Rfc8 {[%clk
0:02:26.4]} 14. Bd6 {[%clk 0:02:17]} 14... Qe4 {[%clk 0:02:08.7]} 15. Rb1 {[%clk
0:02:16.7]} 15... Nxc5 {[%clk 0:02:06.2]} 16. Ng5 {[%clk 0:01:39.6]} 16... Qh4
{[%clk 0:01:56.6]} 17. Nf3 {[%clk 0:01:39.4]} 17... Qa4 {[%clk 0:01:49.5]} 18.
Bxc5 {[%clk 0:01:32.9]} 18... Rxc5 {[%clk 0:01:49.7]} 19. Rxb7 {[%clk
0:01:33.6]} 19... Qxa2 {[%clk 0:01:41]} 20. Ng5 {[%clk 0:01:19.3]} 20... Qa6
{[%clk 0:01:10.4]} 21. Qb1 {[%clk 0:01:15.6]} 21... Rf8 {[%clk 0:00:42.5]} 22.
Qb3 {[%clk 0:01:12.6]} 22... Ne4 {[%clk 0:00:27.9]} 23. Nxe4 {[%clk 0:00:32.7]}
23... fxe4 {[%clk 0:00:28.8]} 24. Rb8 {[%clk 0:00:33.3]} 24... Rcc8 {[%clk
0:00:20.6]} 25. Rb4 {[%clk 0:00:33.3]} 25... Qc6 {[%clk 0:00:18.5]} 26. h3
{[%clk 0:00:32.4]} 26... Qxc2 {[%clk 0:00:15.4]} 27. Qxc2 {[%clk 0:00:30.4]}
27... Rxc2 {[%clk 0:00:16]} 28. Rxe4 {[%clk 0:00:30.6]} 28... a5 {[%clk
0:00:11.8]} 29. Ra4 {[%clk 0:00:30.2]} 29... Ra8 {[%clk 0:00:10.6]} 30. Rfa1
{[%clk 0:00:30.7]} 30... Rc5 {[%clk 0:00:11.1]} 31. h4 {[%clk 0:00:30.7]} 31...
g6 {[%clk 0:00:11.1]} 32. g3 {[%clk 0:00:29.6]} 32... Kg7 {[%clk 0:00:11.8]} 33.
Kg2 {[%clk 0:00:29.9]} 33... h6 {[%clk 0:00:12.5]} 34. e4 {[%clk 0:00:30.4]}
34... Kf6 {[%clk 0:00:12.9]} 35. f4 {[%clk 0:00:26.2]} 35... Ra6 {[%clk
0:00:12.9]} 36. R1a3 {[%clk 0:00:21.6]} 36... h5 {[%clk 0:00:13.3]} 37. Kf3
{[%clk 0:00:21.8]} 37... Ke6 {[%clk 0:00:13.9]} 38. Ke3 {[%clk 0:00:19.9]} 38...
Rb5 {[%clk 0:00:13.3]} 39. Kf3 {[%clk 0:00:18.9]} 39... Kf6 {[%clk 0:00:13.7]}
40. Ke3 {[%clk 0:00:19.3]} 40... Ke7 {[%clk 0:00:14.3]} 41. Kf3 {[%clk
0:00:19.8]} 41... Ke6 {[%clk 0:00:15]} 42. Ke3 {[%clk 0:00:20.3]} 42... Rc5
{[%clk 0:00:15.6]} 43. Kf3 {[%clk 0:00:20.7]} 43... Kd7 {[%clk 0:00:16.2]} 44.
Rd4+ {[%clk 0:00:16.5]} 44... Ke7 {[%clk 0:00:16]} 45. Rad3 {[%clk 0:00:17.2]}
45... Ra7 {[%clk 0:00:16.3]} 46. Ra4 {[%clk 0:00:17.1]} 46... Rb5 {[%clk
0:00:16.2]} 47. Ke3 {[%clk 0:00:15.2]} 47... Rab7 {[%clk 0:00:16.3]} 48. Rda3
{[%clk 0:00:12.5]} 48... Rb3+ {[%clk 0:00:16.6]} 49. Kd4 {[%clk 0:00:11.3]}
49... R7b4+ {[%clk 0:00:09.4]} 50. Kd5 {[%clk 0:00:10.8]} 50... Rxg3 {[%clk
0:00:03.5]} 51. Rxa5 {[%clk 0:00:07.4]} 51... Rd3+ {[%clk 0:00:03.4]} 52. Kc5
{[%clk 0:00:05.9]} 52... Rxa3 {[%clk 0:00:03.4]} 53. Kxb4 {[%clk 0:00:03.7]}
53... Re3 {[%clk 0:00:03.1]} 54. Re5+ {[%clk 0:00:02.8]} 54... Kf6 {[%clk
0:00:03.8]} 55. Kc4 {[%clk 0:00:03.3]} 55... Rf3 {[%clk 0:00:04.3]} 0-1

[Event "Early-Titled-Tuesday-Blitz-April-23-2024"]
[Site "Chess.com"]
[Date "2024.04.23"]
[Round "3"]
[White "Balla_Tamas"]
[Black "Rsnr"]
[Result "0-1"]
[WhiteElo "2541"]
[BlackElo "2893"]
[TimeControl "180+1"]
[EndTime "8:29:52 PDT"]
[Termination "Rsnr won by resignation"]

1. e4 {[%clk 0:03:00.9]} 1... e5 {[%clk 0:03:00.3]} 2. Nf3 {[%clk 0:03:00.2]}
2... Nc6 {[%clk 0:03:00.7]} 3. d4 {[%clk 0:03:00]} 3... exd4 {[%clk 0:03:00.8]}
4. Nxd4 {[%clk 0:03:00.9]} 4... Nf6 {[%clk 0:03:01.3]} 5. Nxc6 {[%clk
0:03:00.3]} 5... bxc6 {[%clk 0:03:02.2]} 6. e5 {[%clk 0:03:00.7]} 6... Qe7
{[%clk 0:03:00.7]} 7. Qe2 {[%clk 0:03:00.5]} 7... Nd5 {[%clk 0:03:00.9]} 8. h4
{[%clk 0:03:00.9]} 8... f6 {[%clk 0:02:53.5]} 9. c4 {[%clk 0:02:56]} 9... Ba6
{[%clk 0:02:52.6]} 10. Rh3 {[%clk 0:02:55.6]} 10... fxe5 {[%clk 0:01:55.2]} 11.
Bg5 {[%clk 0:02:51.2]} 11... Nf6 {[%clk 0:01:42.1]} 12. Re3 {[%clk 0:02:41.6]}
12... d6 {[%clk 0:01:42.6]} 13. Nc3 {[%clk 0:02:37.9]} 13... h6 {[%clk
0:01:40.3]} 14. Bxf6 {[%clk 0:02:36.9]} 14... gxf6 {[%clk 0:01:40.8]} 15. O-O-O
{[%clk 0:02:36.3]} 15... O-O-O {[%clk 0:01:22.7]} 16. g3 {[%clk 0:02:19.3]}
16... h5 {[%clk 0:01:15.8]} 17. Bh3+ {[%clk 0:02:19]} 17... Kb8 {[%clk
0:01:15.9]} 18. Qf3 {[%clk 0:02:15.5]} 18... Bh6 {[%clk 0:01:08.7]} 19. Qxc6
{[%clk 0:02:11.5]} 19... Bb7 {[%clk 0:01:09]} 20. Qb5 {[%clk 0:02:11.1]} 20...
c6 {[%clk 0:01:09.2]} 21. Qb4 {[%clk 0:02:01.8]} 21... Bxe3+ {[%clk 0:01:08.7]}
22. fxe3 {[%clk 0:02:02.7]} 22... Rhg8 {[%clk 0:01:04.7]} 23. Bg2 {[%clk
0:01:55.9]} 23... Qc7 {[%clk 0:00:56.7]} 24. Ne4 {[%clk 0:01:50.4]} 24... c5
{[%clk 0:00:56.9]} 25. Qd2 {[%clk 0:01:41.5]} 25... Qe7 {[%clk 0:00:27.3]} 26.
Rf1 {[%clk 0:01:04.7]} 26... Rg4 {[%clk 0:00:24.8]} 27. Nxf6 {[%clk 0:01:01.7]}
27... Rxc4+ {[%clk 0:00:24.6]} 28. Kb1 {[%clk 0:00:59.4]} 28... Bxg2 {[%clk
0:00:15.9]} 29. Qxg2 {[%clk 0:00:59.7]} 29... e4 {[%clk 0:00:16.5]} 30. Qe2
{[%clk 0:00:52.4]} 30... Qe6 {[%clk 0:00:14.1]} 31. Nxh5 {[%clk 0:00:48.7]}
31... Rb4 {[%clk 0:00:13.7]} 32. Nf4 {[%clk 0:00:46.1]} 32... Qe5 {[%clk
0:00:13.9]} 33. a3 {[%clk 0:00:39]} 33... Rb7 {[%clk 0:00:13.5]} 34. Ng6 {[%clk
0:00:31.7]} 34... Qd5 {[%clk 0:00:11]} 35. h5 {[%clk 0:00:27.8]} 35... Qb3
{[%clk 0:00:07.9]} 36. Ka1 {[%clk 0:00:24.1]} 36... c4 {[%clk 0:00:08.1]} 37.
Rc1 {[%clk 0:00:19.9]} 37... d5 {[%clk 0:00:08.3]} 38. h6 {[%clk 0:00:19.6]}
38... Qb6 {[%clk 0:00:08.1]} 39. Nf4 {[%clk 0:00:15.6]} 39... Qxh6 {[%clk
0:00:08.2]} 40. Qg4 {[%clk 0:00:14]} 40... Qb6 {[%clk 0:00:08]} 41. Rc2 {[%clk
0:00:13.3]} 41... c3 {[%clk 0:00:08.4]} 42. Qg5 {[%clk 0:00:09.6]} 42... cxb2+
{[%clk 0:00:08]} 43. Kb1 {[%clk 0:00:09.4]} 43... a5 {[%clk 0:00:03.9]} 44. Qe5+
{[%clk 0:00:08.9]} 44... Ka7 {[%clk 0:00:03.3]} 45. Nxd5 {[%clk 0:00:09.4]}
45... Qb3 {[%clk 0:00:03.1]} 46. Qd4+ {[%clk 0:00:09.4]} 46... Kb8 {[%clk
0:00:03.5]} 47. Qe5+ {[%clk 0:00:08.8]} 47... Ka8 {[%clk 0:00:03.5]} 48. Nc7+
{[%clk 0:00:09.1]} 48... Ka7 {[%clk 0:00:04]} 49. Qc5+ {[%clk 0:00:08.5]} 49...
Qb6 {[%clk 0:00:04.5]} 50. Nb5+ {[%clk 0:00:08.3]} 50... Ka6 {[%clk 0:00:04.6]}
51. Nc7+ {[%clk 0:00:08.7]} 51... Rxc7 {[%clk 0:00:05.1]} 52. Qxc7 {[%clk
0:00:08.8]} 52... Rd1+ {[%clk 0:00:03.8]} 0-1

[Event "Early-Titled-Tuesday-Blitz-April-23-2024"]
[Site "Chess.com"]
[Date "2024.04.23"]
[Round "3"]
[White "dvglko"]
[Black "arenal72"]
[Result "0-1"]
[WhiteElo "2445"]
[BlackElo "2625"]
[TimeControl "180+1"]
[EndTime "8:29:52 PDT"]
[Termination "arenal72 won by resignation"]

1. e4 {[%clk 0:03:00.9]} 1... Nc6 {[%clk 0:02:57.3]} 2. Nf3 {[%clk 0:02:58.2]}
2... d6 {[%clk 0:02:54.6]} 3. Bb5 {[%clk 0:02:56.2]} 3... Nf6 {[%clk 0:02:53.6]}
4. Nc3 {[%clk 0:02:54.6]} 4... g6 {[%clk 0:02:53.7]} 5. O-O {[%clk 0:02:52.7]}
5... Bg7 {[%clk 0:02:51.5]} 6. d4 {[%clk 0:02:51.1]} 6... a6 {[%clk 0:02:48.8]}
7. Ba4 {[%clk 0:02:45.3]} 7... b5 {[%clk 0:02:41.9]} 8. Bb3 {[%clk 0:02:44.5]}
8... O-O {[%clk 0:02:41.2]} 9. Bg5 {[%clk 0:02:34.6]} 9... h6 {[%clk 0:02:29]}
10. Bxf6 {[%clk 0:02:32.4]} 10... Bxf6 {[%clk 0:02:26.7]} 11. a4 {[%clk
0:02:32.3]} 11... Rb8 {[%clk 0:02:17.6]} 12. axb5 {[%clk 0:02:28.2]} 12... axb5
{[%clk 0:02:16.8]} 13. Nd5 {[%clk 0:02:16.6]} 13... Bg7 {[%clk 0:02:09.5]} 14.
c3 {[%clk 0:02:16.3]} 14... b4 {[%clk 0:01:58.1]} 15. Ba4 {[%clk 0:01:45.6]}
15... Bd7 {[%clk 0:01:49.3]} 16. Re1 {[%clk 0:01:38.1]} 16... bxc3 {[%clk
0:01:42.2]} 17. bxc3 {[%clk 0:01:39]} 17... e6 {[%clk 0:01:36.6]} 18. Bxc6
{[%clk 0:01:36.8]} 18... Bxc6 {[%clk 0:01:34.7]} 19. Nb4 {[%clk 0:01:37.7]}
19... Bb5 {[%clk 0:01:33.4]} 20. c4 {[%clk 0:01:18.3]} 20... Bd7 {[%clk
0:01:20.8]} 21. Nc2 {[%clk 0:00:56.2]} 21... c5 {[%clk 0:01:16.9]} 22. Ra6
{[%clk 0:00:50.4]} 22... cxd4 {[%clk 0:01:04.3]} 23. Rxd6 {[%clk 0:00:37.2]}
23... Qc7 {[%clk 0:00:50.5]} 24. e5 {[%clk 0:00:36.1]} 24... Ba4 {[%clk
0:00:31.6]} 25. Nfxd4 {[%clk 0:00:12.2]} 25... Bxe5 {[%clk 0:00:26]} 26. Ra6
{[%clk 0:00:12.2]} 26... Bxc2 {[%clk 0:00:19]} 27. Nxc2 {[%clk 0:00:13.1]} 27...
Bxh2+ {[%clk 0:00:18.3]} 28. Kh1 {[%clk 0:00:13.6]} 28... Be5 {[%clk 0:00:18.6]}
29. Qd3 {[%clk 0:00:10.9]} 29... Bg7 {[%clk 0:00:18]} 30. Ne3 {[%clk 0:00:10.4]}
30... Rfd8 {[%clk 0:00:17.9]} 31. Qe4 {[%clk 0:00:10.3]} 31... Rd4 {[%clk
0:00:17.7]} 32. Qf3 {[%clk 0:00:07.1]} 32... Rf4 {[%clk 0:00:12.1]} 33. Qg3
{[%clk 0:00:04.1]} 33... h5 {[%clk 0:00:10.3]} 34. Kg1 {[%clk 0:00:04]} 34... h4
{[%clk 0:00:09.7]} 35. Qg5 {[%clk 0:00:04.2]} 35... h3 {[%clk 0:00:06.6]} 36. g3
{[%clk 0:00:03.9]} 36... Rd4 {[%clk 0:00:05.6]} 37. Ng4 {[%clk 0:00:03.8]} 37...
Qxc4 {[%clk 0:00:04]} 38. Nf6+ {[%clk 0:00:02.3]} 38... Bxf6 {[%clk 0:00:03.8]}
39. Qxf6 {[%clk 0:00:02.7]} 39... Qxa6 {[%clk 0:00:04.4]} 40. Qxd4 {[%clk
0:00:03.2]} 40... Qc6 {[%clk 0:00:04.1]} 41. Qe4 {[%clk 0:00:01.1]} 41... Qxe4
{[%clk 0:00:04]} 42. Rxe4 {[%clk 0:00:02]} 42... Kg7 {[%clk 0:00:03.8]} 43. Kh2
{[%clk 0:00:01.9]} 43... Rh8 {[%clk 0:00:04.3]} 44. Rh4 {[%clk 0:00:01.5]} 44...
Rxh4 {[%clk 0:00:04.4]} 45. gxh4 {[%clk 0:00:02.4]} 45... Kh6 {[%clk 0:00:04.9]}
46. Kxh3 {[%clk 0:00:03.2]} 46... Kh5 {[%clk 0:00:05.5]} 47. Kg3 {[%clk
0:00:03.7]} 47... e5 {[%clk 0:00:06]} 48. Kh3 {[%clk 0:00:03.7]} 48... f5 {[%clk
0:00:06.2]} 49. f3 {[%clk 0:00:03.3]} 49... f4 {[%clk 0:00:05]} 50. Kg2 {[%clk
0:00:02.1]} 50... Kxh4 {[%clk 0:00:05.9]} 51. Kf2 {[%clk 0:00:02.9]} 51... g5
{[%clk 0:00:06.4]} 52. Ke2 {[%clk 0:00:03.2]} 52... g4 {[%clk 0:00:07.3]} 53.
Kf2 {[%clk 0:00:03.3]} 53... g3+ {[%clk 0:00:06.1]} 54. Kg2 {[%clk 0:00:03.3]}
54... Kg5 {[%clk 0:00:06.8]} 55. Kg1 {[%clk 0:00:03.6]} 55... Kf5 {[%clk
0:00:07.2]} 56. Kg2 {[%clk 0:00:04.3]} 56... e4 {[%clk 0:00:07.5]} 57. fxe4+
{[%clk 0:00:04.6]} 57... Kxe4 {[%clk 0:00:08.3]} 58. Kf1 {[%clk 0:00:04.5]}
58... Kf3 {[%clk 0:00:08.4]} 59. Kg1 {[%clk 0:00:05.1]} 59... Ke2 {[%clk
0:00:08.6]} 60. Kg2 {[%clk 0:00:05.4]} 60... f3+ {[%clk 0:00:09.4]} 61. Kxg3
{[%clk 0:00:06.1]} 61... f2 {[%clk 0:00:10.3]} 0-1

[Event "Early-Titled-Tuesday-Blitz-April-23-2024"]
[Site "Chess.com"]
[Date "2024.04.23"]
[Round "3"]
[White "maciek_92"]
[Black "Herzog2012"]
[Result "1/2-1/2"]
[WhiteElo "2832"]
[BlackElo "2544"]
[TimeControl "180+1"]
[EndTime "8:29:55 PDT"]
[Termination "Game drawn by repetition"]

1. c4 {[%clk 0:03:00.9]} 1... e5 {[%clk 0:02:59.7]} 2. Nc3 {[%clk 0:02:59.5]}
2... Nf6 {[%clk 0:02:59.7]} 3. g3 {[%clk 0:03:00]} 3... d5 {[%clk 0:02:58.7]} 4.
cxd5 {[%clk 0:03:00.9]} 4... Nxd5 {[%clk 0:02:58.9]} 5. Bg2 {[%clk 0:03:01.6]}
5... Nb6 {[%clk 0:02:59.5]} 6. e3 {[%clk 0:03:01.3]} 6... Nc6 {[%clk 0:02:57.4]}
7. Nge2 {[%clk 0:03:01.9]} 7... Bd6 {[%clk 0:02:53.8]} 8. d4 {[%clk 0:03:01.5]}
8... exd4 {[%clk 0:02:53.1]} 9. Nxd4 {[%clk 0:03:02.4]} 9... Nxd4 {[%clk
0:02:51.7]} 10. Qxd4 {[%clk 0:03:02.3]} 10... O-O {[%clk 0:02:50.7]} 11. O-O
{[%clk 0:03:03]} 11... Qe7 {[%clk 0:02:49]} 12. e4 {[%clk 0:03:01.7]} 12... Be5
{[%clk 0:02:48]} 13. Qe3 {[%clk 0:03:02]} 13... Nc4 {[%clk 0:02:36.4]} 14. Qe2
{[%clk 0:03:02.6]} 14... Be6 {[%clk 0:02:21.4]} 15. f4 {[%clk 0:03:02.4]} 15...
Bd4+ {[%clk 0:02:21.1]} 16. Kh1 {[%clk 0:03:02.3]} 16... f6 {[%clk 0:02:16.3]}
17. Rd1 {[%clk 0:03:02]} 17... c5 {[%clk 0:02:09.7]} 18. Nb5 {[%clk 0:02:55.5]}
18... Rfd8 {[%clk 0:01:58.5]} 19. Nxd4 {[%clk 0:02:55.9]} 19... cxd4 {[%clk
0:01:58.1]} 20. b3 {[%clk 0:02:56.1]} 20... Na5 {[%clk 0:01:19.9]} 21. Bb2
{[%clk 0:02:53.2]} 21... Nc6 {[%clk 0:01:19.2]} 22. Rd2 {[%clk 0:02:50]} 22...
Rd7 {[%clk 0:01:17.7]} 23. Rad1 {[%clk 0:02:50]} 23... Rad8 {[%clk 0:01:16.6]}
24. h3 {[%clk 0:02:46.9]} 24... a5 {[%clk 0:01:05.3]} 25. Kh2 {[%clk 0:02:46.8]}
25... Qb4 {[%clk 0:01:03.8]} 26. Qf2 {[%clk 0:02:35.5]} 26... a4 {[%clk
0:00:58]} 27. bxa4 {[%clk 0:02:34.9]} 27... Qxa4 {[%clk 0:00:55.1]} 28. a3
{[%clk 0:02:34.1]} 28... d3 {[%clk 0:00:53.6]} 29. Qe3 {[%clk 0:02:28.6]} 29...
Bb3 {[%clk 0:00:52.9]} 30. Rc1 {[%clk 0:02:26.6]} 30... Bc2 {[%clk 0:00:52.4]}
31. e5 {[%clk 0:02:25.7]} 31... fxe5 {[%clk 0:00:46.9]} 32. fxe5 {[%clk
0:02:25.9]} 32... Nd4 {[%clk 0:00:40.3]} 33. e6 {[%clk 0:02:24.3]} 33... Re7
{[%clk 0:00:35.8]} 34. Bxd4 {[%clk 0:02:14.8]} 34... Qxd4 {[%clk 0:00:25.3]} 35.
Qxd4 {[%clk 0:02:14.6]} 35... Rxd4 {[%clk 0:00:26.2]} 36. Rcxc2 {[%clk 0:02:15]}
36... dxc2 {[%clk 0:00:08.5]} 37. Rxd4 {[%clk 0:02:15.9]} 37... Rxe6 {[%clk
0:00:06.8]} 38. Rc4 {[%clk 0:02:15.5]} 38... Re2 {[%clk 0:00:06.9]} 39. Kg1
{[%clk 0:02:15.8]} 39... Re1+ {[%clk 0:00:06]} 40. Kf2 {[%clk 0:02:14.6]} 40...
c1=Q {[%clk 0:00:06.9]} 41. Rxc1 {[%clk 0:02:14.8]} 41... Rxc1 {[%clk
0:00:07.4]} 42. Bxb7 {[%clk 0:02:15.5]} 42... Ra1 {[%clk 0:00:08.1]} 43. h4
{[%clk 0:02:14]} 43... Ra2+ {[%clk 0:00:08.2]} 44. Kg1 {[%clk 0:02:13.9]} 44...
Rxa3 {[%clk 0:00:09.1]} 45. Kg2 {[%clk 0:02:14.1]} 45... Kf7 {[%clk 0:00:08.4]}
46. Bd5+ {[%clk 0:02:13.9]} 46... Kf6 {[%clk 0:00:08.5]} 47. Be4 {[%clk
0:02:14.8]} 47... h6 {[%clk 0:00:08.4]} 48. Bc6 {[%clk 0:02:15.4]} 48... Kf5
{[%clk 0:00:08.2]} 49. Bd7+ {[%clk 0:02:13.7]} 49... Ke4 {[%clk 0:00:08.2]} 50.
Bc6+ {[%clk 0:02:14.5]} 50... Ke3 {[%clk 0:00:08.5]} 51. Bb7 {[%clk 0:02:13.8]}
51... Ra2+ {[%clk 0:00:08.5]} 52. Kg1 {[%clk 0:02:13.8]} 52... Rb2 {[%clk
0:00:05.7]} 53. Bc6 {[%clk 0:02:14]} 53... Rf2 {[%clk 0:00:05.6]} 54. Bb7 {[%clk
0:02:13.8]} 54... g5 {[%clk 0:00:03.2]} 55. hxg5 {[%clk 0:02:12.8]} 55... hxg5
{[%clk 0:00:04.1]} 56. Bc6 {[%clk 0:02:13.3]} 56... Rb2 {[%clk 0:00:04.8]} 57.
Kf1 {[%clk 0:02:09.3]} 57... Rc2 {[%clk 0:00:03.6]} 58. Bb7 {[%clk 0:02:09.1]}
58... Rb2 {[%clk 0:00:04.5]} 59. Bc6 {[%clk 0:02:09.2]} 59... Rd2 {[%clk
0:00:05.4]} 60. Kg1 {[%clk 0:02:08.1]} 60... Rf2 {[%clk 0:00:06.3]} 61. Bb7
{[%clk 0:02:07.9]} 61... g4 {[%clk 0:00:06.4]} 62. Bc6 {[%clk 0:02:07.6]} 62...
Rf3 {[%clk 0:00:06.7]} 63. Kg2 {[%clk 0:02:03.7]} 63... Rf6 {[%clk 0:00:06.4]}
64. Bd7 {[%clk 0:01:58.9]} 64... Rf2+ {[%clk 0:00:05.4]} 65. Kg1 {[%clk
0:01:58.9]} 65... Kf3 {[%clk 0:00:04.9]} 66. Bxg4+ {[%clk 0:01:57.1]} 66... Kxg3
{[%clk 0:00:05.4]} 67. Bh5 {[%clk 0:01:46.6]} 67... Rh2 {[%clk 0:00:04.4]} 68.
Bg6 {[%clk 0:01:45.5]} 68... Rg2+ {[%clk 0:00:03.9]} 69. Kf1 {[%clk 0:01:45.5]}
69... Rf2+ {[%clk 0:00:03]} 70. Ke1 {[%clk 0:01:45.8]} 70... Kf3 {[%clk
0:00:03.6]} 71. Kd1 {[%clk 0:01:43.7]} 71... Ke3 {[%clk 0:00:03.6]} 72. Bh7
{[%clk 0:01:43.4]} 72... Rd2+ {[%clk 0:00:03.7]} 73. Kc1 {[%clk 0:01:43]} 73...
Rh2 {[%clk 0:00:04.3]} 74. Bg6 {[%clk 0:01:42.4]} 74... Rg2 {[%clk 0:00:04.6]}
75. Bh7 {[%clk 0:01:42.6]} 75... Kd4 {[%clk 0:00:05.1]} 76. Kd1 {[%clk 0:01:42]}
76... Rh2 {[%clk 0:00:04.5]} 77. Bg6 {[%clk 0:01:42]} 77... Kc3 {[%clk
0:00:02.4]} 78. Ke1 {[%clk 0:01:41.8]} 78... Rb2 {[%clk 0:00:03.3]} 79. Bh7
{[%clk 0:01:41.4]} 79... Kd4 {[%clk 0:00:03.8]} 80. Kd1 {[%clk 0:01:41.5]} 80...
Rf2 {[%clk 0:00:03.6]} 81. Bg6 {[%clk 0:01:41.6]} 81... Ke3 {[%clk 0:00:03.5]}
82. Kc1 {[%clk 0:01:41.8]} 82... Rd2 {[%clk 0:00:03.9]} 83. Bh7 {[%clk 0:01:42]}
83... Re2 {[%clk 0:00:03]} 84. Bg6 {[%clk 0:01:42.1]} 84... Rg2 {[%clk
0:00:03.4]} 85. Bh7 {[%clk 0:01:41.8]} 85... Rg3 {[%clk 0:00:02.3]} 86. Kd1
{[%clk 0:01:41.4]} 86... Kd4 {[%clk 0:00:02.5]} 87. Bf5 {[%clk 0:01:40.7]} 87...
Rg2 {[%clk 0:00:02.8]} 88. Bh7 {[%clk 0:01:40.5]} 88... Rh2 {[%clk 0:00:02.8]}
89. Bg6 {[%clk 0:01:40.4]} 89... Ra2 {[%clk 0:00:02.9]} 90. Bh7 {[%clk
0:01:39.8]} 90... Rg2 {[%clk 0:00:03.6]} 91. Bf5 {[%clk 0:01:39.5]} 91... Kc3
{[%clk 0:00:02.5]} 92. Ke1 {[%clk 0:01:39.3]} 92... Rd2 {[%clk 0:00:02.8]} 93.
Bg6 {[%clk 0:01:39.5]} 93... Rg2 {[%clk 0:00:02.7]} 94. Bh7 {[%clk 0:01:39.7]}
94... Rh2 {[%clk 0:00:03.6]} 95. Bg6 {[%clk 0:01:39.9]} 95... Kd4 {[%clk
0:00:04.2]} 96. Kd1 {[%clk 0:01:39.6]} 1/2-1/2

[Event "Early-Titled-Tuesday-Blitz-April-23-2024"]
[Site "Chess.com"]
[Date "2024.04.23"]
[Round "3"]
[White "Kyrko_Gamba"]
[Black "EdmundPlayer"]
[Result "0-1"]
[WhiteElo "2432"]
[BlackElo "2282"]
[TimeControl "180+1"]
[EndTime "8:29:55 PDT"]
[Termination "EdmundPlayer won by checkmate"]

1. d4 {[%clk 0:03:00.9]} 1... Nf6 {[%clk 0:02:59.9]} 2. Nf3 {[%clk 0:03:00]}
2... g6 {[%clk 0:02:59.9]} 3. Bf4 {[%clk 0:02:57]} 3... Bg7 {[%clk 0:02:58.7]}
4. Qc1 {[%clk 0:02:53.2]} 4... c5 {[%clk 0:02:56]} 5. c3 {[%clk 0:02:47.8]} 5...
b6 {[%clk 0:02:48.1]} 6. Bh6 {[%clk 0:02:46.5]} 6... Bxh6 {[%clk 0:02:44.3]} 7.
Qxh6 {[%clk 0:02:47.4]} 7... Bb7 {[%clk 0:02:42]} 8. Nbd2 {[%clk 0:02:47.3]}
8... cxd4 {[%clk 0:02:18.1]} 9. cxd4 {[%clk 0:02:46.4]} 9... Nc6 {[%clk
0:02:15.9]} 10. a3 {[%clk 0:02:40.9]} 10... Qc7 {[%clk 0:02:09.9]} 11. Rc1
{[%clk 0:02:35.1]} 11... Rc8 {[%clk 0:01:59.9]} 12. e4 {[%clk 0:02:23.8]} 12...
Qb8 {[%clk 0:01:53]} 13. d5 {[%clk 0:02:19.6]} 13... Ne5 {[%clk 0:01:44.4]} 14.
Rxc8+ {[%clk 0:02:19]} 14... Bxc8 {[%clk 0:01:44.4]} 15. Be2 {[%clk 0:01:45]}
15... Nxf3+ {[%clk 0:01:43.6]} 16. Bxf3 {[%clk 0:01:44.4]} 16... Qe5 {[%clk
0:01:29.8]} 17. O-O {[%clk 0:01:39.6]} 17... Qxb2 {[%clk 0:01:29.1]} 18. Nc4
{[%clk 0:01:39.7]} 18... Qc3 {[%clk 0:01:24.2]} 19. Rc1 {[%clk 0:01:38.5]} 19...
Qb3 {[%clk 0:01:08.6]} 20. e5 {[%clk 0:01:20.7]} 20... Ba6 {[%clk 0:00:58.6]}
21. exf6 {[%clk 0:01:00.6]} 21... Bxc4 {[%clk 0:00:57.3]} 22. Qf4 {[%clk
0:00:59.4]} 22... O-O {[%clk 0:00:38.1]} 23. fxe7 {[%clk 0:00:54.1]} 23... Re8
{[%clk 0:00:38.3]} 24. Qxc4 {[%clk 0:00:45.4]} 24... Qxa3 {[%clk 0:00:38.6]} 25.
h3 {[%clk 0:00:15.2]} 25... Rxe7 {[%clk 0:00:33.8]} 26. Qc8+ {[%clk 0:00:14.4]}
26... Kg7 {[%clk 0:00:33.7]} 27. Qc3+ {[%clk 0:00:08.6]} 27... Qxc3 {[%clk
0:00:33.1]} 28. Rxc3 {[%clk 0:00:09.5]} 28... Kf6 {[%clk 0:00:30.6]} 29. Ra3
{[%clk 0:00:08.7]} 29... d6 {[%clk 0:00:30.4]} 30. Kf1 {[%clk 0:00:06.7]} 30...
Rc7 {[%clk 0:00:30.3]} 31. g3 {[%clk 0:00:06]} 31... Ke5 {[%clk 0:00:30.7]} 32.
Re3+ {[%clk 0:00:04.6]} 32... Kd4 {[%clk 0:00:30.5]} 33. Re4+ {[%clk 0:00:05.2]}
33... Kd3 {[%clk 0:00:28.4]} 34. Kg2 {[%clk 0:00:04.9]} 34... a5 {[%clk
0:00:27.4]} 35. Re3+ {[%clk 0:00:05.4]} 35... Kd4 {[%clk 0:00:26]} 36. Re4+
{[%clk 0:00:06]} 36... Kd3 {[%clk 0:00:26.3]} 37. Rf4 {[%clk 0:00:06.7]} 37...
b5 {[%clk 0:00:25.1]} 38. Be4+ {[%clk 0:00:06.9]} 38... Kc3 {[%clk 0:00:20.1]}
39. Rf6 {[%clk 0:00:06.8]} 39... a4 {[%clk 0:00:17.1]} 40. Rxd6 {[%clk
0:00:06.4]} 40... Kd4 {[%clk 0:00:15.6]} 41. Bf3 {[%clk 0:00:05.4]} 41... a3
{[%clk 0:00:14.8]} 42. Ra6 {[%clk 0:00:05.6]} 42... b4 {[%clk 0:00:14.8]} 43. d6
{[%clk 0:00:05.8]} 43... Rd7 {[%clk 0:00:14.6]} 44. g4 {[%clk 0:00:03.4]} 44...
Kc3 {[%clk 0:00:13.5]} 45. Rc6+ {[%clk 0:00:03.5]} 45... Kb2 {[%clk 0:00:13.1]}
46. Bd5 {[%clk 0:00:03.5]} 46... b3 {[%clk 0:00:11.5]} 47. Rb6 {[%clk 0:00:03]}
47... Rxd6 {[%clk 0:00:02.2]} 48. Rxb3+ {[%clk 0:00:02.5]} 48... Kc2 {[%clk
0:00:02.3]} 49. Rd3 {[%clk 0:00:03.1]} 49... a2 {[%clk 0:00:02.1]} 50. Bxa2
{[%clk 0:00:02.8]} 50... Kxd3 {[%clk 0:00:02.3]} 51. Bxf7 {[%clk 0:00:03.4]}
51... Rf6 {[%clk 0:00:02.4]} 52. Bg8 {[%clk 0:00:03.9]} 52... h6 {[%clk
0:00:02.4]} 53. h4 {[%clk 0:00:04.6]} 53... g5 {[%clk 0:00:02.6]} 54. hxg5
{[%clk 0:00:04.8]} 54... hxg5 {[%clk 0:00:03.5]} 55. Kg3 {[%clk 0:00:05.6]}
55... Ke2 {[%clk 0:00:03.4]} 56. Bd5 {[%clk 0:00:05.9]} 56... Rf4 {[%clk
0:00:03.6]} 57. Be4 {[%clk 0:00:06.6]} 57... Rxe4 {[%clk 0:00:02.9]} 58. f3
{[%clk 0:00:07.5]} 58... Rf4 {[%clk 0:00:03.7]} 59. Kg2 {[%clk 0:00:08.3]} 59...
Rxf3 {[%clk 0:00:04.3]} 60. Kh2 {[%clk 0:00:09.2]} 60... Kf2 {[%clk 0:00:04.4]}
61. Kh1 {[%clk 0:00:09.3]} 61... Rh3# {[%clk 0:00:05.3]} 0-1